bitfinex/quotes_SOLUSD_20220212
["timestamp","ask_amount","ask_price","bid_price","bid_amount"]
[1644656788577,5.251,95.265,95.17,0.024]
[1644656790879,10.96983777,95.264,95.17,0.024]
[1644656791081,12.59,95.26,95.17,0.024]
[1644656791282,5.251,95.259,95.17,0.024]
[1644656791884,49.442,95.258,95.17,0.024]
[1644656792084,5.251,95.257,95.17,0.024]
[1644656793386,5.251,95.266,95.171,5.251]
[1644656793589,63.86788213,95.298,95.18,0.024]
[1644656793789,5.251,95.288,95.18,0.024]
[1644656793994,5.249,95.297,95.181,5.249]
[1644656794390,5.249,95.297,95.182,18.90692945]
[1644656794591,47.649,95.298,95.183,5.249]
[1644656794815,2.24299711,95.323,95.183,7.63266791]
[1644656794816,10.96595319,95.318,95.183,7.63266791]
[1644656795111,10.96595319,95.318,95.184,43.27082945]
[1644656795308,31.7942618,95.316,95.185,5.249]
[1644656795512,31.7942618,95.316,95.2,12.614]
[1644656795513,5.249,95.315,95.2,12.614]
[1644656795709,7.49199711,95.315,95.21,0.024]
[1644656795911,2.24299711,95.314,95.21,0.024]
[1644656796510,5.248,95.313,95.21,0.024]
[1644656796917,2.24299711,95.312,95.21,0.024]
[1644656797414,5.248,95.311,95.21,0.024]
[1644656798213,24.2427,95.31,95.21,0.024]
[1644656798414,5.248,95.309,95.21,0.024]
[1644656800627,2.24483402,95.308,95.21,0.024]
[1644656800819,5.248,95.307,95.21,0.024]
[1644656801220,2.24483402,95.306,95.21,0.024]
[1644656801722,5.248,95.305,95.21,0.024]
[1644656802019,2.24483402,95.304,95.21,0.024]
[1644656802419,5.248,95.303,95.21,0.024]
[1644656803021,12.59,95.3,95.21,0.024]
[1644656803420,2.24483402,95.299,95.21,0.024]
[1644656803619,7.49383402,95.299,95.21,0.024]
[1644656803820,22.7731,95.298,95.21,0.024]
[1644656804021,25.01793402,95.298,95.21,0.024]
[1644656804320,2.24483402,95.297,95.21,0.024]
[1644656804525,5.249,95.296,95.21,0.024]
[1644656804721,5.249,95.296,95.211,5.249]
[1644656805925,2.24483402,95.295,95.211,5.249]
[1644656807125,5.249,95.294,95.211,5.249]
[1644656807326,12.59,95.29,95.211,5.249]
[1644656807626,5.249,95.289,95.211,5.249]
[1644656807825,7.49383402,95.289,95.211,5.249]
[1644656808025,2.24483402,95.288,95.212,45.77929727]
[1644656808229,8.09137283,95.287,95.212,45.77929727]
[1644656808632,5.249,95.286,95.212,45.77929727]
[1644656808826,28.096,95.286,95.2,0.024]
[1644656809026,25.01653402,95.285,95.2,0.024]
[1644656809225,5.249,95.284,95.19,0.024]
[1644656809429,7.49383402,95.284,95.2,0.024]
[1644656809826,2.24483402,95.283,95.19,0.024]
[1644656810027,5.25,95.282,95.19,0.024]
[1644656810328,2.24483402,95.281,95.19,0.024]
[1644656810728,5.25,95.28,95.19,0.024]
[1644656811025,2.24483402,95.279,95.19,0.024]
[1644656811427,5.25,95.278,95.19,0.024]
[1644656811824,2.24483402,95.277,95.19,0.024]
[1644656812225,5.25,95.276,95.19,0.024]
[1644656812425,23.3414,95.275,95.19,0.024]
[1644656812626,25.58623402,95.275,95.19,0.024]
[1644656812828,2.24483402,95.274,95.19,0.024]
[1644656813027,12.59,95.26,95.19,0.024]
[1644656813232,29.069,95.259,95.19,0.024]
[1644656813628,2.24483402,95.258,95.19,0.024]
[1644656814032,34.03909582,95.258,95.19,0.024]
[1644656814429,2.24483402,95.257,95.19,0.024]
[1644656814628,5.25,95.256,95.19,0.024]
[1644656814828,2.24483402,95.257,95.19,0.024]
[1644656815031,2.24483402,95.255,95.19,0.024]
[1644656815230,12.59,95.25,95.19,0.024]
[1644656815429,12.59,95.25,95.177,46.28178612]
[1644656815630,5.251,95.249,95.177,46.28178612]
[1644656816229,22.6698,95.248,95.177,46.28178612]
[1644656816531,5.251,95.247,95.177,46.28178612]
[1644656816930,22.6698,95.248,95.177,46.28178612]
[1644656819834,5.251,95.247,95.177,46.28178612]
[1644656820035,22.6698,95.248,95.177,46.28178612]
[1644656820233,31.7942618,95.258,95.177,46.28178612]
[1644656820435,29.1734,95.257,95.177,46.28178612]
[1644656820960,29.1734,95.257,95.18,0.024]
[1644656822137,5.251,95.286,95.181,1.4815648]
[1644656822336,22.5702,95.284,95.181,1.4815648]
[1644656822536,22.5702,95.284,95.191,1.4815648]
[1644656822738,22.5702,95.284,95.2,0.024]
[1644656822942,33.86792769,95.283,95.196,1.4815648]
[1644656823138,33.86792769,95.283,95.2,0.024]
[1644656823337,5.249,95.282,95.2,0.024]
[1644656823540,33.86792769,95.283,95.2,0.024]
[1644656823737,33.86792769,95.283,95.201,5.249]
[1644656823938,5.249,95.282,95.2,0.024]
[1644656825341,33.86792769,95.283,95.201,5.249]
[1644656825738,22.5702,95.284,95.201,5.249]
[1644656826743,54.60171349,95.284,95.201,5.249]
[1644656828343,7.48354399,95.283,95.201,5.249]
[1644656828946,2.23454399,95.282,95.201,5.249]
[1644656829145,5.249,95.281,95.201,5.249]
[1644656829344,5.249,95.281,95.2,0.024]
[1644656829542,2.23454399,95.28,95.2,0.024]
[1644656829745,2.23454399,95.28,95.198,22.8987]
[1644656829945,2.23454399,95.28,95.2,0.024]
[1644656830146,5.249,95.279,95.198,22.8987]
[1644656830344,2.23454399,95.28,95.2,0.024]
[1644656830643,2.23454399,95.278,95.2,0.024]
[1644656830844,5.249,95.277,95.198,22.8987]
[1644656831048,5.249,95.277,95.2,0.024]
[1644656831249,2.23454399,95.276,95.198,22.8987]
[1644656831446,2.23454399,95.276,95.2,0.024]
[1644656831647,7.48454399,95.276,95.2,0.024]
[1644656831848,2.23454399,95.276,95.198,22.8987]
[1644656832048,2.23454399,95.276,95.2,0.024]
[1644656832447,2.23454399,95.276,95.198,22.8987]
[1644656832647,2.23454399,95.276,95.2,0.024]
[1644656832851,5.25,95.275,95.198,22.8987]
[1644656833050,5.25,95.275,95.2,0.024]
[1644656833251,5.25,95.275,95.198,22.8987]
[1644656833451,5.25,95.275,95.2,0.024]
[1644656833650,5.25,95.275,95.198,22.8987]
[1644656833852,5.25,95.275,95.2,0.024]
[1644656834053,2.23454399,95.276,95.2,0.024]
[1644656834251,2.23454399,95.276,95.198,22.8987]
[1644656834451,2.23454399,95.276,95.2,0.024]
[1644656835351,2.23454399,95.276,95.198,22.8987]
[1644656835550,5.25,95.275,95.2,0.024]
[1644656836568,5.25,95.275,95.199,1.4815648]
[1644656836770,5.25,95.275,95.2,0.024]
[1644656836968,5.25,95.275,95.198,22.8987]
[1644656837168,5.25,95.275,95.2,0.024]
[1644656837368,5.25,95.275,95.198,22.8987]
[1644656837569,5.25,95.275,95.2,0.024]
[1644656837771,5.25,95.275,95.198,22.8987]
[1644656837971,5.25,95.275,95.2,0.024]
[1644656838470,5.25,95.275,95.198,22.8987]
[1644656838670,5.25,95.275,95.2,0.024]
[1644656840073,5.25,95.275,95.198,22.8987]
[1644656840272,5.25,95.275,95.2,0.024]
[1644656840476,5.25,95.275,95.198,22.8987]
[1644656840676,5.25,95.275,95.2,0.024]
[1644656840874,54.60171349,95.284,95.204,1.4815648]
[1644656841075,54.60171349,95.284,95.201,1.4815648]
[1644656841278,5.249,95.283,95.204,1.4815648]
[1644656841478,22.5702,95.284,95.206,1.4815648]
[1644656841676,5.249,95.282,95.21,0.024]
[1644656841875,22.5702,95.284,95.206,1.4815648]
[1644656841876,5.249,95.283,95.206,1.4815648]
[1644656842077,5.249,95.281,95.21,0.024]
[1644656842276,38.20006253,95.28,95.207,45.02336442]
[1644656842476,43.44906253,95.28,95.21,0.024]
[1644656842677,43.44906253,95.28,95.207,45.02336442]
[1644656842977,5.249,95.28,95.207,45.02336442]
[1644656843377,5.249,95.283,95.207,45.02336442]
[1644656843579,5.249,95.283,95.207,46.50492922]
[1644656843779,5.249,95.283,95.21,0.024]
[1644656844682,5.249,95.283,95.21,23.4445]
[1644656845881,5.249,95.283,95.21,24.9260648]
[1644656846082,5.249,95.283,95.21,23.4205]
[1644656846282,22.5702,95.284,95.21,24.9020648]
[1644656846485,22.5702,95.284,95.21,24.9260648]
[1644656846887,22.5702,95.284,95.211,1.4815648]
[1644656847282,22.5702,95.284,95.214,1.4815648]
[1644656848384,22.5702,95.284,95.213,1.4815648]
[1644656848582,22.5702,95.284,95.214,1.4815648]
[1644656848785,5.249,95.305,95.215,1.4815648]
[1644656848990,24.4072,95.304,95.223,1.4815648]
[1644656849186,2.23454399,95.319,95.224,5.248]
[1644656849386,36.33996884,95.319,95.23,0.024]
[1644656849589,5.247,95.318,95.238,1.4815648]
[1644656849785,5.247,95.318,95.239,35.28472686]
[1644656849987,5.247,95.318,95.24,23.0393]
[1644656850187,5.247,95.318,95.24,24.5208648]
[1644656850387,5.247,95.318,95.241,1.4815648]
[1644656850887,1.47885482,95.332,95.242,5.247]
[1644656851097,1.47885482,95.333,95.242,6.7285648]
[1644656851299,5.247,95.346,95.246,1.4815648]
[1644656851500,30.56632262,95.351,95.257,1.4815648]
[1644656851698,5.246,95.345,95.261,1.4815648]
[1644656851899,30.56632262,95.351,95.26,15.7441]
[1644656852098,30.56632262,95.351,95.261,24.3466]
[1644656852299,5.246,95.35,95.261,24.3466]
[1644656852498,7.48054399,95.35,95.261,24.3466]
[1644656853000,2.23454399,95.349,95.261,24.3466]
[1644656853198,1.47885482,95.366,95.262,2.38366791]
[1644656853402,2.23482411,95.368,95.265,1.4815648]
[1644656853601,5.245,95.367,95.27,12.59]
[1644656853800,28.6310517,95.371,95.271,45.76394405]
[1644656854002,28.6310517,95.371,95.272,24.2376]
[1644656854199,28.6310517,95.371,95.273,5.245]
[1644656854601,31.97102411,95.37,95.272,24.2376]
[1644656854999,2.23482411,95.369,95.272,24.2376]
[1644656855200,5.245,95.368,95.272,24.2376]
[1644656855600,2.23482411,95.367,95.272,24.2376]
[1644656855800,2.23482411,95.367,95.273,5.245]
[1644656856201,29.5709,95.369,95.273,5.245]
[1644656856400,29.5709,95.369,95.272,24.2376]
[1644656857702,29.5709,95.369,95.272,24.10283]
[1644656857901,24.3259,95.369,95.273,7.60534791]
[1644656858101,5.245,95.368,95.273,7.60534791]
[1644656858903,5.245,95.368,95.28,15.7406]
[1644656859104,2.23482411,95.393,95.281,5.245]
[1644656859306,5.244,95.392,95.281,5.245]
[1644656859504,2.23482411,95.393,95.281,5.245]
[1644656859703,2.23482411,95.391,95.273,5.244]
[1644656859905,17.834,95.39,95.272,24.10283]
[1644656860205,2.23482411,95.389,95.272,24.10283]
[1644656860403,52.7925,95.388,95.272,24.10283]
[1644656860803,2.23482411,95.387,95.272,24.10283]
[1644656861006,5.244,95.386,95.273,5.244]
[1644656861404,2.23482411,95.385,95.273,5.244]
[1644656861906,15.7466,95.38,95.273,5.244]
[1644656862107,5.245,95.379,95.273,5.244]
[1644656862309,7.47982411,95.379,95.273,5.244]
[1644656862506,2.23482411,95.378,95.273,5.244]
[1644656862706,29.6753,95.377,95.272,24.10283]
[1644656863107,2.23482411,95.376,95.272,24.10283]
[1644656863310,5.245,95.375,95.272,23.91015]
[1644656863610,2.23482411,95.374,95.272,23.91015]
[1644656863810,28.3388,95.37,95.271,45.76394405]
[1644656864109,2.23482411,95.369,95.271,45.76394405]
[1644656864309,5.245,95.368,95.271,45.76394405]
[1644656864710,15.7518,95.35,95.233,5.245]
[1644656865009,12.59,95.34,95.231,5.246]
[1644656865208,5.247,95.339,95.232,23.7015]
[1644656865409,24.6982,95.338,95.232,23.7015]
[1644656865608,5.247,95.337,95.233,5.247]
[1644656865810,10.38933921,95.336,95.234,40.99229565]
[1644656866013,5.247,95.335,95.235,5.247]
[1644656866209,10.38933921,95.336,95.235,5.247]
[1644656868414,5.247,95.335,95.235,5.247]
[1644656869717,10.38933921,95.336,95.235,5.247]
[1644656870013,10.38933921,95.336,95.234,40.99229565]
[1644656870216,5.247,95.335,95.235,5.247]
[1644656871616,10.38933921,95.336,95.235,5.247]
[1644656872716,10.38933921,95.336,95.235,6.7285648]
[1644656872919,24.6982,95.338,95.236,18.69026278]
[1644656873121,24.6982,95.338,95.241,1.4815648]
[1644656873317,24.6982,95.338,95.242,6.7285648]
[1644656873553,24.6982,95.338,95.242,20.17182758]
[1644656873720,24.6982,95.338,95.24,12.59]
[1644656873721,24.6982,95.338,95.243,25.41882758]
[1644656873919,24.6982,95.338,95.243,20.17182758]
[1644656874119,24.6982,95.338,95.244,23.93726278]
[1644656874322,5.247,95.348,95.245,26.2367648]
[1644656874518,24.0076,95.347,95.246,5.246]
[1644656874720,5.246,95.346,95.25,15.7458]
[1644656875418,15.126,95.346,95.25,15.7458]
[1644656876020,15.126,95.346,95.247,18.69026278]
[1644656878221,15.126,95.346,95.247,20.17182758]
[1644656878622,15.126,95.346,95.248,1.4815648]
[1644656878823,9.88,95.346,95.249,5.246]
[1644656879024,9.88,95.346,95.247,20.17182758]
[1644656879025,9.88,95.346,95.248,5.246]
[1644656880425,24.0076,95.347,95.248,5.246]
[1644656881924,5.246,95.346,95.248,5.246]
[1644656884930,6.72485482,95.346,95.248,5.246]
[1644656885127,6.72485482,95.346,95.246,5.246]
[1644656885729,1.47885482,95.345,95.246,5.246]
[1644656885929,5.246,95.344,95.246,5.246]
[1644656886131,5.246,95.344,95.247,1.4815648]
[1644656886330,5.246,95.346,95.248,5.246]
[1644656886529,5.246,95.343,95.248,5.246]
[1644656886731,5.246,95.345,95.246,6.7275648]
[1644656886930,5.246,95.342,95.246,6.7275648]
[1644656887131,6.72485482,95.346,95.246,5.246]
[1644656887331,1.47885482,95.343,95.248,1.4815648]
[1644656887533,5.246,95.342,95.248,1.4815648]
[1644656887931,5.246,95.342,95.249,1.4815648]
[1644656888131,1.47885482,95.344,95.25,5.246]
[1644656888331,5.246,95.341,95.251,1.4815648]
[1644656888541,5.246,95.343,95.25,1.4815648]
[1644656888731,6.72485482,95.345,95.249,1.4815648]
[1644656888931,5.246,95.342,95.249,1.4815648]
[1644656889131,1.47885482,95.345,95.25,1.4815648]
[1644656889534,1.47885482,95.344,95.251,5.246]
[1644656889935,12.59,95.34,95.251,5.246]
[1644656890135,12.59,95.34,95.25,1.4815648]
[1644656890136,1.47885482,95.325,95.25,1.4815648]
[1644656890333,12.59,95.32,95.231,1.4815648]
[1644656890533,12.59,95.32,95.22,0.024]
[1644656890534,1.47885482,95.305,95.22,0.024]
[1644656890736,1.47885482,95.302,95.212,1.4815648]
[1644656890934,1.47885482,95.294,95.22,0.024]
[1644656891134,1.47885482,95.294,95.213,44.16642729]
[1644656891338,5.249,95.293,95.213,44.16642729]
[1644656891536,52.4023,95.3,95.213,44.16642729]
[1644656891736,5.249,95.292,95.22,0.024]
[1644656891936,7.48251952,95.299,95.213,44.16642729]
[1644656892136,5.249,95.291,95.22,0.024]
[1644656892436,5.248,95.298,95.22,0.024]
[1644656892637,5.248,95.298,95.213,44.16642729]
[1644656892836,5.248,95.298,95.22,0.024]
[1644656895249,7.47635815,95.298,95.22,0.024]
[1644656895440,2.22835815,95.298,95.22,0.024]
[1644656895639,5.248,95.297,95.22,0.024]
[1644656900069,2.22835815,95.296,95.22,0.024]
[1644656900472,5.248,95.295,95.22,0.024]
[1644656902071,5.248,95.295,95.213,44.16642729]
[1644656902270,2.22835815,95.294,95.213,44.16642729]
[1644656902471,5.249,95.293,95.213,44.16642729]
[1644656902672,15.7617,95.29,95.213,44.16642729]
[1644656902870,5.249,95.289,95.213,44.16642729]
[1644656903074,23.8829,95.288,95.213,44.16642729]
[1644656903272,5.249,95.287,95.213,44.16642729]
[1644656904072,2.22835815,95.286,95.213,44.16642729]
[1644656904272,5.249,95.285,95.213,44.16642729]
[1644656905174,2.22835815,95.284,95.213,44.16642729]
[1644656906876,5.249,95.283,95.213,44.16642729]
[1644656907278,7.47735815,95.283,95.213,44.16642729]
[1644656907478,2.22835815,95.283,95.213,44.16642729]
[1644656907680,5.249,95.282,95.213,44.16642729]
[1644656908081,7.47735815,95.282,95.213,44.16642729]
[1644656910781,5.249,95.282,95.213,44.16642729]
[1644656910982,23.8829,95.288,95.213,44.16642729]
[1644656911183,23.8829,95.288,95.214,23.5762]
[1644656911583,23.8829,95.288,95.215,5.249]
[1644656912884,24.82762353,95.319,95.215,5.249]
[1644656913088,5.248,95.327,95.22,12.614]
[1644656913283,15.7516,95.35,95.22,12.614]
[1644656913284,1.47885482,95.34,95.22,12.614]
[1644656913482,10.96248775,95.347,95.227,1.4815648]
[1644656913682,5.247,95.346,95.24,12.59]
[1644656913885,33.60772417,95.344,95.242,39.13760088]
[1644656914083,5.246,95.343,95.242,39.13760088]
[1644656915689,5.246,95.343,95.243,5.247]
[1644656915883,22.6025,95.345,95.243,14.017]
[1644656916085,5.246,95.356,95.25,15.7459]
[1644656916283,113.0,95.359,95.26,12.59]
[1644656916583,30.70688789,95.356,95.261,28.3976]
[1644656918987,35.95288789,95.356,95.261,23.1516]
[1644656920289,35.95288789,95.356,95.261,28.3976]
[1644656921192,35.95288789,95.356,95.261,23.1516]
[1644656921992,5.246,95.356,95.261,23.1516]
[1644656922390,1.47885482,95.378,95.261,23.1516]
[1644656922391,5.246,95.37,95.261,23.1516]
[1644656922596,0.04111559,95.37,95.261,23.1516]
[1644656922791,0.04111559,95.35,95.261,23.1516]
[1644656922992,0.04111559,95.36,95.261,23.1516]
[1644656923194,0.04111559,95.37,95.261,23.1516]
[1644656923396,0.04111559,95.35,95.261,23.1516]
[1644656923593,0.04111559,95.36,95.261,23.1516]
[1644656923793,0.04111559,95.37,95.27,15.7424]
[1644656924095,0.04111559,95.35,95.28,12.59]
[1644656924291,0.04111559,95.37,95.281,24.8612]
[1644656924492,0.04111559,95.37,95.282,50.23474447]
[1644656926797,0.04111559,95.37,95.282,44.99074447]
[1644656931001,0.04111559,95.37,95.283,5.245]
[1644656932404,2.23382353,95.369,95.283,5.245]
[1644656932606,5.245,95.368,95.283,5.245]
[1644656932805,32.23324015,95.367,95.283,5.245]
[1644656933007,5.245,95.366,95.283,5.245]
[1644656933205,0.04111559,95.36,95.283,5.245]
[1644656933405,5.245,95.359,95.282,44.99074447]
[1644656935811,2.23382353,95.358,95.25,12.59]
[1644656936010,5.246,95.357,95.24,20.9932]
[1644656936210,5.246,95.357,95.24,15.7472]
[1644656936414,2.23382353,95.356,95.24,15.7472]
[1644656936610,5.246,95.355,95.253,23.5637]
[1644656936810,5.246,95.355,95.254,43.00553846]
[1644656937322,23.7192,95.354,95.254,43.00553846]
[1644656937513,0.04111559,95.34,95.254,43.00553846]
[1644656937812,7.65239448,95.338,95.254,43.00553846]
[1644656938013,5.246,95.337,95.254,43.00553846]
[1644656940421,30.92089448,95.338,95.254,43.00553846]
[1644656940916,5.246,95.337,95.254,43.00553846]
[1644656942237,1.47885482,95.334,95.254,43.00553846]
[1644656942436,0.04111559,95.33,95.254,43.00553846]
[1644656942936,2.27493912,95.33,95.254,43.00553846]
[1644656943136,5.247,95.329,95.254,43.00553846]
[1644656946243,2.23385426,95.328,95.254,43.00553846]
[1644656946441,24.1546,95.327,95.254,43.00553846]
[1644656949045,5.247,95.326,95.254,43.00553846]
[1644656951147,0.04111559,95.33,95.255,5.247]
[1644656951346,0.04111559,95.34,95.255,5.247]
[1644656952049,0.04111559,95.34,95.256,23.5669]
[1644656952249,0.04111559,95.34,95.257,5.246]
[1644656953650,5.246,95.339,95.257,5.246]
[1644656953849,22.6946,95.338,95.257,5.246]
[1644656954049,5.246,95.337,95.257,5.246]
[1644656955352,5.246,95.337,95.256,23.5669]
[1644656955758,2.23385426,95.336,95.228,1.4815648]
[1644656956053,0.04111559,95.33,95.217,23.624]
[1644656956253,5.247,95.329,95.217,23.624]
[1644656956452,23.5636,95.328,95.235,23.624]
[1644656956652,5.247,95.327,95.236,46.49982089]
[1644656957155,23.7266,95.326,95.236,46.49982089]
[1644656957352,5.247,95.325,95.236,46.49982089]
[1644656957560,5.247,95.325,95.2,17.837]
[1644656957561,4.10666,95.323,95.214,1.4815648]
[1644656957754,1.47885482,95.298,95.18,1.4815648]
[1644656957953,1.47885482,95.298,95.155,5.247]
[1644656957954,0.48,95.28,95.155,5.247]
[1644656958154,1.47885482,95.269,95.151,1.4815648]
[1644656958354,1.47885482,95.263,95.145,1.4815648]
[1644656958557,12.59,95.26,95.148,1.4815648]
[1644656958755,12.59,95.26,95.161,1.4815648]
[1644656958957,12.59,95.26,95.155,1.4815648]
[1644656959155,12.59,95.26,95.156,5.251]
[1644656959360,23.4094,95.259,95.157,26.0950648]
[1644656959557,23.4094,95.259,95.158,1.4815648]
[1644656959780,7.48485426,95.258,95.158,5.251]
[1644656959960,7.48485426,95.258,95.155,1.4815648]
[1644656960159,2.23385426,95.257,95.146,44.56944074]
[1644656960363,5.252,95.256,95.146,44.56944074]
[1644656960559,22.9971,95.255,95.146,44.56944074]
[1644656960759,5.252,95.254,95.146,44.56944074]
[1644656960961,7.48585426,95.254,95.146,44.56944074]
[1644656961157,15.7664,95.25,95.146,44.56944074]
[1644656961962,15.7664,95.25,95.147,5.252]
[1644656963863,22.9971,95.255,95.15,5.18665408]
[1644656964061,22.9971,95.255,95.15,15.24665408]
[1644656964260,5.252,95.283,95.15,31.00905408]
[1644656964463,2.23385426,95.284,95.15,31.00905408]
[1644656964464,5.251,95.275,95.15,31.00905408]
[1644656964660,2.23385426,95.284,95.15,31.00905408]
[1644656964661,5.251,95.283,95.16,12.59]
[1644656964863,23.5025,95.282,95.16,12.59]
[1644656965067,23.5025,95.282,95.161,29.8562]
[1644656965268,23.5025,95.282,95.18,15.7575]
[1644656965462,23.5025,95.282,95.181,5.25]
[1644656965865,5.25,95.281,95.181,39.79158557]
[1644656966865,5.25,95.281,95.19,15.7558]
[1644656967295,23.5025,95.282,95.191,5.25]
[1644656967496,22.6149,95.299,95.191,5.25]
[1644656967695,22.6149,95.299,95.181,39.79158557]
[1644656967696,0.04111559,95.31,95.19,12.59]
[1644656967899,0.04111559,95.31,95.2,15.754]
[1644656968095,0.04111559,95.31,95.2,28.344]
[1644656969096,0.04111559,95.31,95.2,38.834]
[1644656969898,5.249,95.309,95.2,38.834]
[1644656970598,5.249,95.309,95.2,28.344]
[1644656970799,0.04111559,95.31,95.201,5.249]
[1644656970999,0.04111559,95.31,95.22,15.7512]
[1644656971204,0.04111559,95.31,95.222,36.09491169]
[1644656972604,5.248,95.309,95.23,15.7489]
[1644656972803,0.04111559,95.32,95.24,12.59]
[1644656973000,0.04111559,95.33,95.241,46.751]
[1644656973199,0.04111559,95.36,95.241,46.751]
[1644656973598,5.246,95.359,95.241,46.751]
[1644656973797,43.10408423,95.374,95.241,46.751]
[1644656974000,0.04111559,95.35,95.241,46.751]
[1644656974202,0.04111559,95.36,95.241,46.751]
[1644656974401,0.04111559,95.34,95.241,46.751]
[1644656974601,0.04111559,95.35,95.241,46.751]
[1644656974806,5.246,95.358,95.261,39.15464124]
[1644656975000,0.04111559,95.34,95.261,39.15464124]
[1644656975207,0.04111559,95.35,95.261,62.73444124]
[1644656975401,0.04111559,95.36,95.262,5.245]
[1644656975802,0.04111559,95.36,95.27,15.7425]
[1644656976002,0.04111559,95.36,95.28,12.59]
[1644656976201,48.8335,95.373,95.281,5.245]
[1644656976402,0.04111559,95.36,95.281,5.245]
[1644656976606,0.04111559,95.37,95.281,5.245]
[1644656976902,0.04111559,95.4,95.282,48.30446791]
[1644656977103,0.04111559,95.42,95.283,5.244]
[1644656977308,0.04111559,95.39,95.283,5.244]
[1644656977503,0.04111559,95.41,95.283,7.62766791]
[1644656977702,0.04111559,95.38,95.284,2.38366791]
[1644656977903,0.04111559,95.4,95.291,38.74262258]
[1644656978107,0.04111559,95.37,95.3,12.59]
[1644656978304,0.04111559,95.42,95.3,12.59]
[1644656978505,5.243,95.419,95.3,12.59]
[1644656978710,0.04111559,95.41,95.3,12.59]
[1644656978908,15.78091559,95.41,95.291,38.74262258]
[1644656979108,28.4029,95.409,95.291,38.74262258]
[1644656979307,30.63675426,95.409,95.291,38.74262258]
[1644656979507,2.23385426,95.408,95.291,38.74262258]
[1644656979709,5.243,95.407,95.291,38.74262258]
[1644656979909,23.58663436,95.407,95.291,38.74262258]
[1644656980107,2.23385426,95.406,95.291,38.74262258]
[1644656980408,5.243,95.405,95.291,38.74262258]
[1644656980607,15.7417,95.4,95.291,38.74262258]
[1644656980806,0.04111559,95.39,95.291,38.74262258]
[1644656981109,5.244,95.389,95.291,38.74262258]
[1644656981307,0.04111559,95.38,95.291,38.74262258]
[1644656981709,5.244,95.379,95.291,38.74262258]
[1644656981907,0.04111559,95.38,95.291,38.74262258]
[1644656982106,2.23385426,95.378,95.271,5.243]
[1644656982306,5.245,95.377,95.235,5.245]
[1644656982509,0.04111559,95.37,95.237,5.245]
[1644656982708,12.59,95.36,95.244,5.246]
[1644656982910,0.04111559,95.35,95.244,5.246]
[1644656983110,5.246,95.349,95.245,43.76955033]
[1644656983308,0.04111559,95.35,95.25,15.7459]
[1644656987309,0.04111559,95.35,95.251,5.246]
[1644656988111,0.04111559,95.35,95.26,15.7442]
[1644656988913,0.04111559,95.36,95.26,15.7442]
[1644656989109,0.04111559,95.37,95.261,5.245]
[1644656989308,0.04111559,95.36,95.261,5.245]
[1644656989510,5.246,95.359,95.26,15.7442]
[1644656989910,0.04111559,95.35,95.26,15.7442]
[1644656990110,0.04111559,95.36,95.26,15.7442]
[1644656990609,5.246,95.359,95.251,5.245]
[1644656990809,23.9817,95.358,95.246,24.4101]
[1644656991009,5.246,95.357,95.246,24.4101]
[1644656991610,5.246,95.357,95.247,5.246]
[1644656991810,0.04111559,95.36,95.247,5.246]
[1644656992410,0.04111559,95.36,95.25,15.7457]
[1644656992612,0.04111559,95.36,95.251,5.246]
[1644656993812,0.04111559,95.36,95.281,35.99952022]
[1644656994012,0.04111559,95.37,95.281,35.99952022]
[1644656994214,5.245,95.359,95.281,35.99952022]